bitfinex-derivatives/quotes_BTCF0:USTF0_20260106
["timestamp","ask_amount","ask_price","bid_price","bid_amount"]
[1767667780974,0.09121024,93702.0,93686.0,0.010674]
[1767667781270,0.11441125,93705.0,93687.0,0.02379924]
[1767667781470,0.11441125,93705.0,93687.0,0.03447324]
[1767667782777,0.11441125,93705.0,93687.0,0.010674]
[1767667782975,0.02365125,93704.0,93687.0,0.010674]
[1767667783171,0.09076,93705.0,93676.0,0.09076]
[1767667783172,0.02365125,93690.0,93676.0,0.09076]
[1767667783875,0.09076,93705.0,93676.0,0.09076]
[1767667783876,0.02365125,93693.0,93676.0,0.09076]
[1767667785370,0.02365125,93693.0,93676.0,0.101435]
[1767667791582,0.09121024,93696.0,93676.0,0.101435]
[1767667791780,0.11486149,93696.0,93676.0,0.101435]
[1767667794586,0.02268462,93694.0,93676.0,0.101435]
[1767667798487,0.12030424,93688.0,93668.0,0.09076]
[1767667798686,0.02268462,93681.0,93661.0,0.010677]
[1767667798984,0.02268462,93681.0,93659.0,0.1192282]
[1767667798985,0.02268462,93675.0,93659.0,0.00213542]
[1767667800189,0.010675,93674.0,93659.0,0.00213542]
[1767667800794,0.02268462,93675.0,93659.0,0.00213542]
[1767667802706,0.11489034,93672.0,93659.0,0.00213542]
[1767667802995,0.11489034,93672.0,93649.0,0.09354831]
[1767667802996,0.02122447,93662.0,93645.0,0.09076]
[1767667803191,0.02122447,93662.0,93642.0,0.101439]
[1767667803393,0.02122447,93661.0,93640.0,0.09076]
[1767667803901,0.02122447,93661.0,93640.0,0.06195]
[1767667804803,0.02122447,93661.0,93641.0,0.010679]
[1767667805203,0.02122447,93661.0,93641.0,0.10422731]
[1767667805400,0.02122447,93661.0,93642.0,0.02168448]
[1767667806000,0.02122447,93661.0,93643.0,0.010679]
[1767667806302,0.02122447,93661.0,93643.0,0.03236348]
[1767667807796,0.02122447,93661.0,93643.0,0.02168448]
[1767667808508,0.010677,93660.0,93643.0,0.02168448]
[1767667808897,0.02122447,93661.0,93641.0,0.09354831]
[1767667809099,0.09859767,93660.0,93641.0,0.11523279]
[1767667809298,0.09366587,93662.0,93644.0,0.010679]
[1767667809505,0.09859767,93660.0,93645.0,0.02168448]
[1767667809703,0.02122447,93665.0,93645.0,0.02168448]
[1767667810595,0.02122447,93662.0,93644.0,0.010679]
[1767667810998,0.02122447,93662.0,93636.0,0.27118348]
[1767667810999,0.02122447,93648.0,93629.0,0.09354831]
[1767667811205,0.02122447,93647.0,93629.0,0.09354831]
[1767667811403,0.02122447,93647.0,93627.0,0.0908]
[1767667811602,0.02122447,93647.0,93630.0,0.09859767]
[1767667812003,0.02122447,93647.0,93627.0,0.101481]
[1767667812203,0.09366587,93648.0,93629.0,0.01068]
[1767667813010,0.09366587,93648.0,93630.0,0.09859767]
[1767667813211,0.10519526,93648.0,93630.0,0.09859767]
[1767667813714,0.09366587,93648.0,93630.0,0.09859767]
[1767667814206,0.10482028,93648.0,93630.0,0.12028215]
[1767667814512,0.09366587,93648.0,93630.0,0.12028215]
[1767667814706,0.09366587,93648.0,93631.0,0.01068]
[1767667815109,0.0908,93654.0,93636.0,0.02168448]
[1767667815613,0.03270927,93657.0,93639.0,0.010679]
[1767667815908,0.0908,93656.0,93647.0,0.09859767]
[1767667816114,0.09366587,93663.0,93649.0,0.010678]
[1767667816310,0.0908,93664.0,93651.0,0.02168448]
[1767667816908,0.0908,93664.0,93650.0,0.09859767]
[1767667820720,0.02122447,93665.0,93650.0,0.09859767]
[1767667821421,0.02122447,93665.0,93646.0,0.02168448]
[1767667821721,0.20569034,93668.0,93650.0,0.09859767]
[1767667821918,0.02122447,93667.0,93650.0,0.09859767]
[1767667822126,0.11489034,93667.0,93650.0,0.09859767]
[1767667822314,0.02122447,93666.0,93650.0,0.09859767]
[1767667822514,0.11489034,93666.0,93650.0,0.09859767]
[1767667822821,0.11489034,93666.0,93647.0,0.010678]
[1767667823020,0.11489034,93666.0,93650.0,0.09859767]
[1767667823409,0.11489034,93666.0,93650.0,0.10927567]
[1767667823616,0.0908,93668.0,93650.0,0.13096015]
[1767667827015,0.02122447,93667.0,93650.0,0.09859767]
[1767667829929,0.18446587,93668.0,93650.0,0.09859767]
[1767667830830,0.20569034,93668.0,93650.0,0.09859767]
[1767667832236,0.09716763,93667.0,93640.0,0.09859767]
[1767667832530,0.02365499,93654.0,93637.0,0.101479]
[1767667832732,0.12082262,93653.0,93637.0,0.0908]
[1767667834331,0.12082262,93653.0,93640.0,0.09859767]
[1767667834520,0.12082262,93652.0,93637.0,0.0908]
[1767667834720,0.12082262,93649.0,93637.0,0.0908]
[1767667835228,0.09716763,93649.0,93637.0,0.0908]
[1767667838226,0.09716763,93649.0,93637.0,0.101479]
[1767667838424,0.02365499,93653.0,93639.0,0.010679]
[1767667838630,0.09716763,93654.0,93639.0,0.10927667]
[1767667839739,0.09716763,93654.0,93639.0,0.09859767]
[1767667840936,0.09716763,93654.0,93640.0,0.010679]
[1767667843432,0.09716763,93654.0,93640.0,0.10927667]
[1767667844034,0.09716763,93654.0,93640.0,0.09859767]
[1767667849138,0.0908,93660.0,93645.0,0.03451011]
[1767667849538,0.0908,93660.0,93645.0,0.010679]
[1767667850145,0.0908,93660.0,93644.0,0.010679]
[1767667850731,0.11445499,93660.0,93644.0,0.010679]
[1767667851027,0.21162262,93660.0,93644.0,0.010679]
[1767667852839,0.21162262,93660.0,93641.0,0.03451011]
[1767667853046,0.02365499,93659.0,93641.0,0.03451011]
[1767667853337,0.12082262,93659.0,93641.0,0.010679]
[1767667853535,0.02365499,93658.0,93641.0,0.010679]
[1767667853730,0.12082262,93648.0,93631.0,0.0908]
[1767667853932,0.09716763,93647.0,93631.0,0.10148]
[1767667854133,0.02365499,93651.0,93631.0,0.12531111]
[1767667854443,0.02365499,93651.0,93632.0,0.02383111]
[1767667854641,0.09716763,93652.0,93633.0,0.03292798]
[1767667854831,0.09716763,93652.0,93634.0,0.02224798]
[1767667855246,0.03186849,93654.0,93634.0,0.02224798]
[1767667855743,0.02119049,93653.0,93634.0,0.02224798]
[1767667855930,0.09025057,93652.0,93633.0,0.01068]
[1767667856136,0.11144106,93650.0,93633.0,0.01068]
[1767667856331,0.11144106,93648.0,93633.0,0.01068]
[1767667856937,0.09025057,93648.0,93633.0,0.01068]
[1767667857248,0.0890947,93648.0,93633.0,0.01068]
[1767667857435,0.02119049,93652.0,93633.0,0.01068]
[1767667857941,0.02119049,93652.0,93635.0,0.01068]
[1767667858138,0.18939767,93660.0,93631.0,0.0908]
[1767667858139,0.02119049,93655.0,93636.0,0.02224798]
[1767667858340,0.02119049,93655.0,93638.0,0.010679]
[1767667858532,0.0908,93660.0,93640.0,0.09859767]
[1767667858844,0.02119049,93659.0,93640.0,0.09859767]
[1767667859347,0.11144106,93658.0,93640.0,0.09859767]
[1767667861044,0.11144106,93658.0,93643.0,0.010679]
[1767667861243,0.11144106,93658.0,93640.0,0.10927667]
[1767667861444,0.02226012,93657.0,93640.0,0.10927667]
[1767667861740,0.1127915,93657.0,93640.0,0.10927667]
[1767667861933,0.1127915,93657.0,93640.0,0.09859767]
[1767667862933,0.11306012,93660.0,93640.0,0.13174932]
[1767667863136,0.1127915,93659.0,93640.0,0.13174932]
[1767667863633,0.02226012,93658.0,93640.0,0.10927667]
[1767667863833,0.02226012,93657.0,93640.0,0.10927667]
[1767667865138,0.1127915,93657.0,93640.0,0.10927667]
[1767667865338,0.02226012,93656.0,93640.0,0.10927667]
[1767667866542,0.02226012,93656.0,93640.0,0.010679]
[1767667867743,0.02226012,93656.0,93637.0,0.03315265]
[1767667869845,0.02226012,93656.0,93641.0,0.010679]
[1767667871446,0.02226012,93656.0,93638.0,0.010679]
[1767667873744,0.1127915,93654.0,93635.0,0.10148]
[1767667873951,0.02226012,93650.0,93635.0,0.0908]
[1767667874651,0.09053138,93651.0,93635.0,0.0908]
[1767667877749,0.02226012,93649.0,93631.0,0.01068]
[1767667877948,0.02226012,93649.0,93604.0,0.08401364]
[1767667877949,0.02226012,93637.0,93617.0,0.09737722]
[1767667878150,0.0908,93650.0,93618.0,0.05517]
[1767667878151,0.1127915,93636.0,93618.0,0.05517]
[1767667878648,0.02226012,93632.0,93610.0,0.05696287]
[1767667878855,0.09053138,93631.0,93610.0,0.0908]
[1767667879155,0.09053138,93631.0,93614.0,0.010682]
[1767667885358,0.09053138,93629.0,93614.0,0.010682]
[1767667885555,0.09053138,93629.0,93611.0,0.010682]
[1767667886757,0.1127915,93629.0,93611.0,0.010682]
[1767667889058,0.12383121,93629.0,93611.0,0.010682]
[1767667890262,0.1127915,93629.0,93614.0,0.010682]
[1767667890856,0.1127915,93629.0,93616.0,0.010682]
[1767667891056,0.1127915,93629.0,93613.0,0.010682]
[1767667891464,0.1188488,93625.0,93613.0,0.010682]
[1767667892363,0.09809962,93625.0,93613.0,0.010682]
[1767667893157,0.1188488,93631.0,93610.0,0.11265983]
[1767667893358,0.09809962,93629.0,93610.0,0.11265983]
[1767667893766,0.09809962,93629.0,93614.0,0.010682]
[1767667894165,0.09809962,93629.0,93611.0,0.010682]
[1767667894366,0.1188488,93629.0,93611.0,0.010682]
[1767667894660,0.09809962,93627.0,93611.0,0.010682]
[1767667896178,0.1188488,93627.0,93611.0,0.010682]
[1767667897178,0.1188488,93627.0,93612.0,0.010682]
[1767667898172,0.09809962,93625.0,93610.0,0.0908]
[1767667898381,0.09809962,93625.0,93611.0,0.010683]
[1767667899781,0.09809962,93625.0,93610.0,0.0908]
[1767667900084,0.09809962,93625.0,93613.0,0.010682]
[1767667901684,0.09809962,93625.0,93614.0,0.010682]
[1767667902675,0.09809962,93625.0,93611.0,0.010682]
[1767667904083,0.1188488,93625.0,93610.0,0.0908]
[1767667904278,0.09809962,93623.0,93610.0,0.0908]
[1767667905576,0.09809962,93623.0,93611.0,0.010682]
[1767667906490,0.09809962,93617.0,93610.0,0.0908]
[1767667906683,0.1188488,93617.0,93603.0,0.09084]
[1767667906877,0.010681,93624.0,93603.0,0.09084]
[1767667906878,0.09809962,93613.0,93603.0,0.09084]
[1767667907488,0.09809962,93613.0,93603.0,0.101523]
[1767667907892,0.09809962,93613.0,93603.0,0.09084]
[1767667909988,0.09809962,93613.0,93605.0,0.010683]
[1767667913795,0.09809962,93613.0,93607.0,0.010683]
[1767667914795,0.11496666,93619.0,93607.0,0.010683]
[1767667916192,0.09505658,93617.0,93607.0,0.010683]
[1767667917886,0.09505658,93617.0,93604.0,0.010683]
[1767667918193,0.11496666,93623.0,93606.0,0.010683]
[1767667918690,0.01991008,93622.0,93606.0,0.010683]
[1767667918889,0.09505658,93619.0,93606.0,0.010683]
[1767667919091,0.11496666,93619.0,93606.0,0.010683]
[1767667919386,0.09505658,93617.0,93606.0,0.010683]
[1767667920797,0.09505658,93617.0,93603.0,0.09084]
[1767667920992,0.01879024,93621.0,93612.0,0.010682]
[1767667921193,0.0145193,93621.0,93612.0,0.010682]
[1767667921387,0.01068,93635.0,93612.0,0.010682]
[1767667921591,0.09084,93634.0,93612.0,0.010682]
[1767667921888,0.01068,93633.0,93612.0,0.010682]
[1767667922189,0.01068,93631.0,93603.0,0.09084]
[1767667922388,0.01068,93632.0,93603.0,0.09084]
[1767667922990,0.09673276,93631.0,93603.0,0.09084]
[1767667923293,0.01879024,93628.0,93604.0,0.01907639]
[1767667923498,0.09673276,93625.0,93604.0,0.01907639]
[1767667923696,0.01879024,93624.0,93604.0,0.01907639]
[1767667924197,0.115523,93624.0,93610.0,0.010683]
[1767667924696,0.01879024,93623.0,93610.0,0.010683]
[1767667925396,0.115523,93623.0,93610.0,0.010683]
[1767667925693,0.115523,93616.0,93604.0,0.010683]
[1767667925899,0.01879024,93619.0,93603.0,0.09084]
[1767667926101,0.01879024,93619.0,93607.0,0.010683]
[1767667927194,0.01879024,93619.0,93609.0,0.010683]
[1767667927899,0.09673276,93621.0,93611.0,0.010682]
[1767667928099,0.01879024,93623.0,93611.0,0.010682]
[1767667928298,0.01879024,93622.0,93611.0,0.010682]
[1767667928500,0.115523,93622.0,93611.0,0.010682]
[1767667931788,0.01879024,93621.0,93611.0,0.010682]
[1767667932501,0.115523,93621.0,93603.0,0.09084]
[1767667932697,0.115523,93614.0,93603.0,0.101523]
[1767667932889,0.115523,93618.0,93603.0,0.101523]
[1767667933093,0.01879024,93617.0,93605.0,0.010683]
[1767667933493,0.115523,93614.0,93605.0,0.010683]
[1767667934599,0.115523,93613.0,93599.0,0.00213679]
[1767667934907,0.115523,93601.0,93591.0,0.58016]
[1767667935095,0.115523,93601.0,93589.0,0.09084]
[1767667936404,0.09673276,93601.0,93589.0,0.09084]
[1767667937204,0.115523,93601.0,93590.0,0.09868043]
[1767667937996,0.09673276,93601.0,93589.0,0.09084]
[1767667938393,0.01879024,93605.0,93590.0,0.09868043]
[1767667938698,0.01879024,93605.0,93589.0,0.09084]
[1767667938699,0.115523,93610.0,93595.0,0.09868043]
[1767667938907,0.115523,93609.0,93600.0,0.09868043]
[1767667939703,0.115523,93608.0,93589.0,0.09084]
[1767667939903,0.115523,93608.0,93590.0,0.09868043]
[1767667940408,0.115523,93608.0,93593.0,0.010685]
[1767667940803,0.09673276,93608.0,93591.0,0.01907639]
[1767667941199,0.09673276,93608.0,93598.0,0.09868043]
[1767667941401,0.09673276,93608.0,93599.0,0.010684]
[1767667942712,0.115523,93608.0,93598.0,0.09868043]
[1767667943013,0.01879024,93607.0,93596.0,0.010684]
[1767667943719,0.01879024,93607.0,93593.0,0.010685]
[1767667945813,0.115523,93607.0,93593.0,0.010685]
[1767667946013,0.01879024,93606.0,93593.0,0.010685]
[1767667946909,0.115523,93606.0,93593.0,0.010685]
[1767667949220,0.115523,93606.0,93590.0,0.09868043]
[1767667949422,0.115523,93606.0,93593.0,0.010685]
[1767667951223,0.115523,93606.0,93595.0,0.010684]
[1767667951836,0.115523,93606.0,93592.0,0.010685]
[1767667952918,0.01827066,93605.0,93592.0,0.010685]
[1767667953722,0.11217306,93605.0,93592.0,0.010685]
[1767667954526,0.11217306,93605.0,93594.0,0.010684]
[1767667955224,0.0939024,93605.0,93594.0,0.010684]
[1767667955416,0.01827066,93604.0,93594.0,0.010684]
[1767667955615,0.11217306,93604.0,93594.0,0.010684]
[1767667956425,0.11217306,93604.0,93590.0,0.09868043]
[1767667956821,0.11217306,93604.0,93595.0,0.010684]
[1767667957321,0.11217306,93604.0,93597.0,0.010684]
[1767667957628,0.01827066,93607.0,93599.0,0.010684]
[1767667958923,0.11217306,93609.0,93599.0,0.010684]
[1767667959123,0.01827066,93606.0,93599.0,0.010684]
[1767667959340,0.11217306,93604.0,93596.0,0.010684]
[1767667959629,0.11217306,93604.0,93596.0,0.10936443]
[1767667959821,0.0939024,93604.0,93596.0,0.10936443]
[1767667961025,0.01827066,93610.0,93598.0,0.010684]
[1767667962035,0.11217306,93610.0,93598.0,0.010684]
[1767667962235,0.11217306,93610.0,93600.0,0.09868043]
[1767667962435,0.01827066,93609.0,93600.0,0.09868043]
[1767667962831,0.0939024,93625.0,93611.0,0.010682]
[1767667963027,0.11217306,93624.0,93610.0,0.09868043]
[1767667963229,0.11217306,93618.0,93601.0,0.09084]
[1767667963631,0.11217306,93618.0,93611.0,0.010682]
[1767667963830,0.11217306,93618.0,93601.0,0.09084]
[1767667964026,0.0021361,93629.0,93587.0,0.0181782]
[1767667964027,0.11217306,93610.0,93587.0,0.0181782]
[1767667964232,0.11217306,93603.0,93588.0,0.60612]
[1767667964432,0.11217306,93603.0,93590.0,0.09868043]
[1767667964636,0.11217306,93603.0,93594.0,0.010684]
[1767667964839,0.11217306,93603.0,93596.0,0.010684]
[1767667965231,0.0939024,93603.0,93596.0,0.010684]
[1767667965632,0.101521,93622.0,93591.0,0.0181782]
[1767667965633,0.0939024,93609.0,93591.0,0.0181782]
[1767667966851,0.0939024,93609.0,93601.0,0.010684]
[1767667968041,0.01827066,93608.0,93601.0,0.010684]
[1767667970339,0.01827066,93608.0,93598.0,0.010684]
[1767667971640,0.01827066,93608.0,93590.0,0.09868043]
[1767667971840,0.0939024,93609.0,93590.0,0.11685863]
[1767667972432,0.0939024,93609.0,93591.0,0.0181782]
[1767667973643,0.0939024,93609.0,93599.0,0.010684]
[1767667974636,0.11372868,93606.0,93599.0,0.010684]
[1767667975044,0.11372868,93606.0,93596.0,0.010684]
[1767667977744,0.09670276,93606.0,93590.0,0.09868043]
[1767667978131,0.01702592,93614.0,93604.0,0.010683]
[1767667978333,0.09670276,93616.0,93604.0,0.010683]
[1767667979746,0.09084,93623.0,93604.0,0.010683]
[1767667980448,0.01702592,93622.0,93604.0,0.010683]
[1767667981648,0.09687952,93617.0,93604.0,0.010683]
[1767667981856,0.01841838,93615.0,93604.0,0.010683]
[1767667983050,0.01841838,93615.0,93601.0,0.010684]
[1767667983748,0.01841838,93615.0,93604.0,0.010683]
[1767667983949,0.01841838,93615.0,93606.0,0.010683]
[1767667984144,0.09687952,93616.0,93606.0,0.010683]
[1767667984544,0.09687952,93616.0,93600.0,0.09868043]
[1767667984740,0.09687952,93622.0,93600.0,0.11651452]
[1767667985050,0.09687952,93622.0,93610.0,0.09868043]
[1767667985252,0.09687952,93622.0,93607.0,0.010683]
[1767667986349,0.01841838,93621.0,93607.0,0.010683]
[1767667987552,0.01841838,93621.0,93611.0,0.010683]
[1767667987751,0.01841838,93621.0,93613.0,0.010682]
[1767667988149,0.09687952,93627.0,93610.0,0.09868043]
[1767667988449,0.1152979,93627.0,93610.0,0.09868043]
[1767667988751,0.01841838,93626.0,93612.0,0.010682]
[1767667989364,0.09687952,93627.0,93614.0,0.010682]
[1767667989552,0.11139448,93629.0,93614.0,0.010682]
[1767667989741,0.01841838,93628.0,93614.0,0.010682]
[1767667989945,0.01841838,93628.0,93590.0,0.09866156]
[1767667989946,0.01841838,93605.0,93589.0,0.010685]
[1767667990147,0.1152979,93605.0,93599.0,0.09084]
[1767667990346,0.010681,93622.0,93599.0,0.07142124]
[1767667990546,0.01841838,93607.0,93596.0,0.09084]
[1767667991147,9.917e-05,93606.0,93596.0,0.09084]
[1767667998464,9.917e-05,93606.0,93596.0,0.101524]
[1767667999360,0.01841838,93615.0,93596.0,0.10867409]
[1767668000161,0.01841838,93615.0,93600.0,0.010684]
[1767668000966,0.01841838,93615.0,93596.0,0.10867409]
[1767668001661,0.01841838,93615.0,93600.0,0.010684]
[1767668002363,0.01841838,93615.0,93597.0,0.010684]
[1767668002861,0.01841838,93615.0,93596.0,0.10867409]
[1767668003062,0.01841838,93615.0,93600.0,0.010684]
[1767668003262,0.01841838,93615.0,93597.0,0.010684]
[1767668004372,0.01841838,93615.0,93596.0,0.10867409]
[1767668004563,0.01841838,93614.0,93596.0,0.101524]
[1767668007366,0.01841838,93614.0,93596.0,0.09084]
[1767668007567,0.01841838,93614.0,93600.0,0.010684]
[1767668007761,0.01841838,93618.0,93600.0,0.010684]
[1767668008162,0.01841838,93617.0,93600.0,0.010684]
[1767668008362,0.01841838,93616.0,93597.0,0.010684]
[1767668011267,0.01841838,93616.0,93599.0,0.010684]
[1767668011462,0.01841838,93616.0,93596.0,0.22158502]
[1767668011663,0.02163504,93614.0,93596.0,0.02059927]
[1767668012467,0.09895466,93615.0,93596.0,0.02059927]
[1767668012670,0.09895466,93615.0,93596.0,0.03128327]
[1767668012969,0.1205897,93615.0,93596.0,0.03128327]
[1767668014866,0.1205897,93615.0,93597.0,0.010684]
[1767668015166,0.1205897,93615.0,93596.0,0.02059927]
[1767668016169,0.1205897,93615.0,93597.0,0.010684]
[1767668017471,0.1205897,93615.0,93599.0,0.010684]
[1767668021067,0.02163504,93614.0,93599.0,0.010684]
[1767668022272,0.02163504,93614.0,93596.0,0.02059927]
[1767668023073,0.02163504,93614.0,93593.0,0.11143927]
[1767668023264,0.1205897,93614.0,93599.0,0.010684]
[1767668025874,0.1205897,93613.0,93593.0,0.11143927]
[1767668026174,0.1205897,93610.0,93593.0,0.09084]
[1767668026474,0.09895466,93609.0,93593.0,0.09084]
[1767668026676,0.09895466,93609.0,93596.0,0.010684]
[1767668026976,0.09895466,93609.0,93593.0,0.09084]
[1767668027175,0.09895466,93615.0,93594.0,0.02059927]
[1767668027378,0.1205897,93614.0,93594.0,0.02059927]
[1767668027679,0.1205897,93614.0,93598.0,0.010684]
[1767668028480,0.02163504,93613.0,93598.0,0.010684]
[1767668030274,0.1205897,93613.0,93598.0,0.010684]
[1767668030579,0.1205897,93610.0,93593.0,0.09084]
[1767668030774,0.02163504,93609.0,93593.0,0.101524]
[1767668031672,0.02163504,93609.0,93595.0,0.010684]
[1767668031876,0.02163504,93609.0,93597.0,0.010684]
[1767668032581,0.09895466,93610.0,93597.0,0.010684]
[1767668033681,0.09895466,93610.0,93593.0,0.11143927]
[1767668033872,0.09084,93619.0,93595.0,0.12006102]
[1767668033873,0.09895466,93615.0,93595.0,0.12006102]
[1767668034072,0.02163504,93614.0,93595.0,0.12006102]
[1767668034273,0.02163504,93613.0,93595.0,0.02059927]
[1767668035182,0.02163504,93613.0,93598.0,0.010684]
[1767668036485,0.02163504,93613.0,93600.0,0.010684]
[1767668036677,0.02163504,93613.0,93598.0,0.010684]
[1767668041685,0.02163504,93613.0,93595.0,0.03128327]
[1767668043389,0.02163504,93613.0,93597.0,0.010684]
[1767668043783,0.09895466,93614.0,93599.0,0.010684]
[1767668043983,0.02146527,93616.0,93599.0,0.010684]
[1767668044187,0.02146527,93615.0,93598.0,0.010684]
[1767668044390,0.11636982,93614.0,93598.0,0.010684]
[1767668047389,0.11636982,93614.0,93595.0,0.02059927]
[1767668047390,0.11636982,93614.0,93600.0,0.010684]
[1767668047590,0.09490455,93614.0,93600.0,0.010684]
[1767668047988,0.11636982,93614.0,93600.0,0.010684]
[1767668048191,0.02146527,93613.0,93600.0,0.010684]
[1767668048691,0.02146527,93613.0,93597.0,0.010684]
[1767668048994,0.02146527,93613.0,93599.0,0.010684]
[1767668049193,0.11636982,93613.0,93599.0,0.010684]
[1767668052694,0.02146527,93612.0,93596.0,0.010684]
[1767668052893,0.11636982,93612.0,93596.0,0.010684]
[1767668053294,0.02146527,93611.0,93596.0,0.010684]
[1767668053490,0.02146527,93596.0,93584.0,0.010686]
[1767668053695,0.09490455,93597.0,93585.0,0.05151]
[1767668053888,0.09490455,93597.0,93586.0,0.09084]
[1767668054093,0.098694,93600.0,93586.0,0.09084]
[1767668054293,0.02146527,93602.0,93587.0,0.09084]
[1767668055399,0.010683,93609.0,93587.0,0.09084]
[1767668055400,0.02146527,93600.0,93587.0,0.09084]
[1767668055898,0.11636982,93605.0,93588.0,0.010685]
[1767668056094,0.11636982,93605.0,93587.0,0.09084]
[1767668056095,0.02146527,93604.0,93589.0,0.09084]
[1767668056593,0.02146527,93604.0,93587.0,0.010685]
[1767668056800,0.02146527,93604.0,93588.0,0.09084]
[1767668060498,0.02146527,93603.0,93588.0,0.09084]
[1767668060800,0.02146527,93603.0,93589.0,0.010685]
[1767668063208,0.02146527,93603.0,93589.0,0.101525]
[1767668063910,0.09490455,93604.0,93589.0,0.101525]
[1767668064111,0.09490455,93604.0,93589.0,0.010685]
[1767668064315,0.09490455,93604.0,93588.0,0.09084]
[1767668066914,0.09490455,93604.0,93590.0,0.010685]
[1767668067525,0.09490455,93604.0,93588.0,0.09084]
[1767668069028,0.02146527,93607.0,93589.0,0.010685]
[1767668070028,0.11636982,93607.0,93589.0,0.010685]
[1767668070331,0.02146527,93606.0,93588.0,0.09084]
[1767668071828,0.02146527,93606.0,93587.0,0.02221841]
[1767668072030,0.02146527,93606.0,93588.0,0.09084]
[1767668073821,0.02055646,93604.0,93588.0,0.09084]
[1767668074331,0.02055646,93604.0,93588.0,0.101525]
[1767668075233,0.098694,93610.0,93588.0,0.101525]
[1767668075234,0.11830675,93603.0,93588.0,0.09084]
[1767668075434,0.02055646,93602.0,93588.0,0.09084]
[1767668076339,0.03124046,93602.0,93588.0,0.09084]
[1767668076634,0.02055646,93602.0,93588.0,0.09084]
[1767668077533,0.09775029,93603.0,93588.0,0.09084]
[1767668077743,0.09775029,93616.0,93603.0,0.010683]
[1767668077929,0.09084,93615.0,93600.0,0.0222161]
[1767668078128,0.09084,93614.0,93600.0,0.0222161]
[1767668078329,0.49775029,93621.0,93603.0,0.010683]
[1767668078531,0.18859029,93620.0,93603.0,0.010683]
[1767668079040,0.18859029,93620.0,93600.0,0.0329001]
[1767668079334,0.09775029,93619.0,93600.0,0.010684]
[1767668079840,0.02055646,93616.0,93600.0,0.010684]
[1767668083248,0.11830675,93616.0,93600.0,0.010684]
[1767668083846,0.11830675,93616.0,93598.0,0.098694]
[1767668084945,0.189534,93620.0,93596.0,0.010684]
[1767668084946,0.11830675,93614.0,93596.0,0.010684]
[1767668085141,0.02055646,93612.0,93596.0,0.010684]
[1767668090962,0.02055646,93612.0,93598.0,0.010684]
[1767668091552,0.02055646,93612.0,93595.0,0.101524]
[1767668093750,0.02055646,93612.0,93597.0,0.010684]
[1767668095053,0.09775029,93613.0,93597.0,0.010684]
[1767668096944,0.11816694,93613.0,93597.0,0.010684]
[1767668098550,0.09775029,93613.0,93597.0,0.010684]
[1767668098757,0.11816694,93613.0,93597.0,0.010684]
[1767668100055,0.11816694,93613.0,93599.0,0.010684]
[1767668100254,0.010678,93654.0,93607.0,0.01961369]
[1767668100453,5.71e-05,93629.0,93619.0,0.098694]
[1767668100658,0.09084,93635.0,93620.0,0.010681]
[1767668100853,0.09084,93637.0,93622.0,0.010681]
[1767668101154,0.04468898,93663.0,93633.0,0.02061332]
[1767668101356,0.010677,93659.0,93635.0,0.09223208]
[1767668101652,0.09084,93662.0,93636.0,0.01068]
[1767668101853,0.098694,93660.0,93638.0,0.02061332]
[1767668102048,0.098694,93660.0,93636.0,0.09223208]
[1767668102357,0.098694,93650.0,93631.0,0.09223208]
[1767668102558,0.01594749,93646.0,93627.0,0.09084]
[1767668102761,0.01594749,93646.0,93627.0,0.101521]
[1767668103052,0.01594749,93646.0,93628.0,0.01068]
[1767668103458,0.09642079,93647.0,93628.0,0.03129332]
[1767668104451,0.0154755,93649.0,93631.0,0.01068]
[1767668104655,0.098694,93650.0,93631.0,0.03129332]
[1767668105359,0.11455124,93650.0,93631.0,0.02061332]
[1767668105548,0.11455124,93650.0,93630.0,0.098694]
[1767668106548,0.11455124,93650.0,93630.0,0.109374]
[1767668106760,0.01563228,93649.0,93630.0,0.01068]
[1767668106959,0.01563228,93649.0,93630.0,0.109374]
[1767668107155,0.11205307,93649.0,93630.0,0.098694]
[1767668107362,0.01475573,93648.0,93630.0,0.098694]
[1767668108764,0.01475573,93648.0,93628.0,0.1128454]
[1767668108966,0.01453443,93647.0,93628.0,0.09223208]
[1767668109356,0.01453443,93647.0,93628.0,0.1128454]
[1767668109957,0.01453443,93647.0,93629.0,0.01068]
[1767668110158,0.01453443,93647.0,93628.0,0.1128454]
[1767668110759,0.01433628,93646.0,93628.0,0.09223208]
[1767668111064,0.01433628,93646.0,93629.0,0.01068]
[1767668111260,0.01433628,93646.0,93620.0,0.098694]
[1767668111261,0.11254835,93640.0,93622.0,0.09223208]
[1767668111465,0.01385435,93638.0,93623.0,0.09084]
[1767668111665,0.01385435,93638.0,93624.0,0.09084]
[1767668112760,0.01363605,93637.0,93618.0,0.010682]
[1767668113066,0.01363605,93637.0,93619.0,0.09084]
[1767668113257,0.01363605,93637.0,93618.0,0.010682]
[1767668113457,0.01363605,93637.0,93619.0,0.09084]
[1767668116267,0.09642079,93638.0,93619.0,0.11145332]
[1767668116465,0.09642079,93638.0,93620.0,0.010681]
[1767668117263,0.10904392,93637.0,93619.0,0.09084]
[1767668117464,0.01262313,93635.0,93619.0,0.09084]
[1767668118767,0.01262313,93635.0,93619.0,0.101522]
[1767668119571,0.09642079,93636.0,93619.0,0.101522]
[1767668119774,0.01220034,93639.0,93619.0,0.101522]
[1767668120170,0.01220034,93639.0,93619.0,0.12213532]
[1767668121071,0.01220034,93639.0,93619.0,0.2143674]
[1767668121270,0.01220034,93639.0,93621.0,0.010681]
[1767668121463,0.01155955,93642.0,93623.0,0.02061332]
[1767668121663,0.01155955,93642.0,93624.0,0.010681]
[1767668123167,0.01096586,93645.0,93624.0,0.03129432]
[1767668123373,0.01096586,93645.0,93624.0,0.1128454]
[1767668123671,0.01096586,93641.0,93620.0,0.02061332]
[1767668123878,0.01096586,93640.0,93620.0,0.02061332]
[1767668125172,0.09642079,93641.0,93622.0,0.02061332]
[1767668125373,0.1080263,93641.0,93622.0,0.02061332]
[1767668126276,0.09084,93651.0,93624.0,0.010681]
[1767668126277,0.01139468,93644.0,93624.0,0.010681]
[1767668126668,0.02207368,93643.0,93623.0,0.02061332]
[1767668126972,0.01139468,93642.0,93624.0,0.010681]
[1767668127174,0.01139468,93642.0,93622.0,0.09223208]
[1767668129081,0.01139468,93642.0,93622.0,0.1128454]
[1767668130381,0.01139468,93642.0,93623.0,0.03129432]
[1767668131076,0.010679,93644.0,93623.0,0.03129432]
[1767668131077,0.01006751,93646.0,93625.0,0.02887127]
[1767668131282,0.01006751,93646.0,93627.0,0.01819027]